bitfinex/quotes_SOLUSD_20250118
["timestamp","ask_amount","ask_price","bid_price","bid_amount"]
[1737228177067,30.77216826,257.0,256.95,20.0]
[1737228177247,30.77216826,257.0,256.96,0.58361564]
[1737228178555,30.77216826,256.98,256.92,0.5836601]
[1737228178759,30.77216826,256.96,256.93,0.03]
[1737228178961,30.77216826,256.96,256.93,0.61372275]
[1737228179963,30.83516826,256.98,256.93,0.61372275]
[1737228180167,30.77216826,256.96,256.93,0.61372275]
[1737228180364,23.776884,256.97,256.93,0.03]
[1737228180365,54.54905226,256.94,256.93,0.03]
[1737228180750,30.77216826,256.94,256.93,0.03]
[1737228181265,30.77216826,256.96,256.93,0.03]
[1737228182061,0.063,256.98,256.93,3.922]
[1737228182243,0.063,256.98,256.96,3.8916]
[1737228182447,0.063,256.98,256.97,20.58358964]
[1737228182660,0.0001,256.98,256.97,56.2429579]
[1737228182852,30.77216826,257.14,257.01,20.0]
[1737228183049,30.77216826,257.12,257.06,20.0]
[1737228183249,30.77216826,257.12,257.07,0.58341128]
[1737228183654,30.77216826,257.14,257.07,0.58341128]
[1737228184360,30.77216826,257.14,257.08,3.8898]
[1737228184562,30.77216826,257.14,257.09,0.58332212]
[1737228185049,30.77216826,257.16,257.09,0.58332212]
[1737228185249,30.77216826,257.18,257.1,20.0]
[1737228185441,30.77216826,257.18,257.12,20.0]
[1737228185649,30.77216826,257.16,257.11,0.58324997]
[1737228186253,30.77216826,257.18,257.12,20.0]
[1737228186567,30.77216826,257.18,257.13,0.58322745]
[1737228187151,30.77216826,257.2,257.13,0.58322745]
[1737228187453,0.063,257.21,257.18,20.0]
[1737228187769,0.063,257.21,257.19,0.58307628]
[1737228188267,30.83516826,257.24,257.22,20.0]
[1737228188268,0.063,257.24,257.22,20.0]
[1737228188442,30.77216826,257.39,257.26,20.0]
[1737228188643,30.77216826,257.39,257.33,20.0]
[1737228188849,30.77216826,257.41,257.35,20.0]
[1737228189049,30.77216826,257.41,257.36,0.58272706]
[1737228189655,30.77216826,257.39,257.33,20.58273924]
[1737228189948,30.77216826,257.37,257.31,0.58285033]
[1737228190154,30.77216826,257.35,257.27,0.5828618]
[1737228190460,30.77216826,257.28,257.21,0.58293462]
[1737228190864,30.77216826,257.24,257.17,0.58305318]
[1737228191165,30.77216826,257.28,257.21,20.0]
[1737228191374,30.77216826,257.31,257.24,20.0]
[1737228191671,30.77216826,257.33,257.25,0.58299942]
[1737228191972,30.77216826,257.35,257.25,31.35516768]
[1737228192176,30.77216826,257.33,257.26,20.0]
[1737228192471,30.77216826,257.33,257.27,0.58292597]
[1737228192658,30.27216826,257.33,257.27,0.58292597]
[1737228192856,23.776884,257.32,257.26,0.58294489]
[1737228193060,23.776884,257.27,257.17,0.58295695]
[1737228193255,23.776884,257.21,257.14,4.8872]
[1737228193469,30.77216826,257.18,257.14,4.8872]
[1737228194051,30.77216826,257.18,257.15,0.5833015]
[1737228194252,30.77216826,257.18,257.14,4.8872]
[1737228194253,30.77216826,257.2,257.14,4.8872]
[1737228194453,30.77216826,257.18,257.14,4.8872]
[1737228194753,3.888,257.2,257.15,0.583276]
[1737228194754,30.77216826,257.2,257.15,0.583276]
[1737228194964,23.776884,257.15,257.04,5.0574]
[1737228195167,30.77216826,257.1,257.05,0.58341582]
[1737228197869,30.77216826,257.1,256.96,10.0]
[1737228197870,30.77216826,257.07,256.96,3.8915]
[1737228198062,30.77216826,257.03,256.97,0.58352324]
[1737228198272,30.77216826,257.01,256.97,0.58352324]
[1737228198651,30.77216826,257.01,256.98,20.0]
[1737228199171,30.77216826,257.03,256.98,20.58360093]
[1737228199561,30.77216826,257.07,257.0,20.0]
[1737228199759,30.77216826,257.14,257.06,20.0]
[1737228199961,30.77216826,257.14,257.07,0.58333697]
[1737228200277,30.77216826,257.12,257.07,0.58333697]
[1737228200896,30.77216826,257.12,257.07,3.8899]
[1737228201171,30.77216826,257.1,257.08,0.58338865]
[1737228201377,30.77216826,257.09,257.02,0.58346433]
[1737228201575,30.77216826,257.07,257.02,0.58346433]
[1737228201757,30.77216826,257.07,257.02,4.47406433]
[1737228202370,30.77216826,257.09,257.02,19.47406433]
[1737228202561,0.58350642,257.18,257.02,0.58341234]
[1737228202760,30.77216826,257.12,257.02,0.58341234]
[1737228203356,30.77216826,257.14,257.05,0.03]
[1737228203568,30.77216826,257.18,257.09,30.77216826]
[1737228203757,30.77216826,257.18,257.1,0.58324965]
[1737228203758,30.77216826,257.14,257.1,0.58324965]
[1737228203965,30.77216826,257.14,257.05,31.38548906]
[1737228204477,30.77216826,257.14,257.08,20.0]
[1737228204677,30.77216826,257.14,257.09,0.58330545]
[1737228205181,30.77216826,257.14,257.1,3.8895]
[1737228205482,30.77216826,257.12,257.11,0.58327705]
[1737228205778,30.77216826,257.12,257.1,4.47283296]
[1737228206076,30.77216826,257.14,257.1,4.47283296]
[1737228206976,30.77216826,257.12,257.09,0.58329417]
[1737228207167,30.77216826,257.1,257.09,0.58329417]
[1737228207371,30.77216826,257.1,257.08,3.8898]
[1737228207763,0.58350642,257.25,257.12,20.0]
[1737228207964,30.77216826,257.24,257.17,20.0]
[1737228208157,0.64650642,257.33,257.2,30.77216826]
[1737228208404,30.77216826,257.29,257.23,20.0]
[1737228209462,30.77216826,257.29,257.23,23.8875]
[1737228210378,30.77216826,257.29,257.23,20.0]
[1737228210569,30.77216826,257.29,257.22,0.58304478]
[1737228210970,23.776884,257.27,257.13,0.58306082]
[1737228211184,23.776884,257.27,257.15,3.8887]
[1737228211185,30.77216826,257.22,257.15,3.8887]
[1737228211366,30.77216826,257.22,257.16,0.5831746]
[1737228211687,30.77216826,257.24,257.16,0.5831746]
[1737228212070,30.77216826,257.22,257.17,20.0]
[1737228212677,30.77216826,257.22,257.17,0.58320531]
[1737228213182,54.54905226,257.24,257.17,4.47160531]
[1737228213372,54.54905226,257.24,257.17,24.47160531]
[1737228213769,54.54905226,257.24,257.17,23.8884]
[1737228214378,54.54905226,257.24,257.15,0.58316952]
[1737228214572,23.776884,257.15,257.04,0.58317431]
[1737228214767,30.77216826,257.12,257.05,3.9202]
[1737228214965,30.77216826,257.08,257.05,0.03]
[1737228215169,54.54905226,257.06,257.05,0.03]
[1737228215876,54.54905226,257.06,256.95,0.03]
[1737228215877,23.776884,257.05,256.95,0.03]
[1737228216063,30.77216826,256.96,256.95,0.03]
[1737228216468,30.77216826,256.98,256.95,0.03]
[1737228216686,30.77216826,256.96,256.95,0.03]
[1737228217092,30.77216826,257.02,256.95,20.03]
[1737228217383,30.77216826,256.96,256.95,0.03]
[1737228217965,54.54905226,256.96,256.95,0.03]
[1737228218370,58.44065226,256.96,256.95,0.03]
[1737228219373,59.02415868,256.96,256.95,0.03]
[1737228219782,5.0,256.94,256.93,0.03]
[1737228219981,60.13255868,256.94,256.93,0.03]
[1737228220173,55.13255868,256.94,256.93,0.03]
[1737228220379,31.35567468,256.94,256.81,0.063]
[1737228220690,30.77216826,256.86,256.81,0.063]
[1737228221077,30.77216826,256.82,256.81,0.063]
[1737228222182,54.54905226,256.82,256.81,0.063]
[1737228222387,30.27216826,256.82,256.81,0.063]
[1737228224298,0.58350642,256.82,256.81,0.063]
[1737228224479,30.77216826,256.82,256.81,0.063]
[1737228225285,30.77216826,256.82,256.8,0.063]
[1737228225500,0.58350642,256.81,256.8,0.063]
[1737228226274,0.58350642,256.81,256.76,0.03]
[1737228226275,5.0,256.77,256.76,0.03]
[1737228226501,113.06234294,256.77,256.76,0.0001]
[1737228226694,25.0,256.74,256.73,0.063]
[1737228227003,56.35567468,256.74,256.73,0.063]
[1737228227206,5.0,256.7,256.69,0.0001]
[1737228227497,20.0,256.67,256.63,0.063]
[1737228227701,54.54905226,256.65,256.63,0.063]
[1737228227905,85.32122052,256.65,256.64,0.0001]
[1737228228107,23.776884,256.6,256.57,0.063]
[1737228228285,85.32122052,256.52,256.51,0.063]
[1737228228488,85.90472694,256.52,256.51,0.063]
[1737228228703,55.13255868,256.52,256.51,0.063]
[1737228228885,54.54905226,256.52,256.51,0.063]
[1737228229497,30.77216826,256.54,256.44,30.77216826]
[1737228229708,30.77216826,256.52,256.47,20.0]
[1737228229891,23.776884,256.51,256.47,20.0]
[1737228230210,23.776884,256.47,256.36,3.9007]
[1737228230502,23.776884,256.47,256.34,31.35699147]
[1737228230503,23.776884,256.4,256.33,1.55209006]
[1737228230812,5.0,256.51,256.33,1.55209006]
[1737228230813,30.77216826,256.45,256.34,35.25827503]
[1737228231109,30.77216826,256.45,256.37,20.0]
[1737228231298,30.77216826,256.45,256.38,0.58496815]
[1737228231495,24.36039042,256.44,256.37,20.0]
[1737228231700,24.36039042,256.44,256.35,0.58497013]
[1737228232311,30.77216826,256.43,256.35,0.58497013]
[1737228232499,31.35567468,256.43,256.35,0.58497013]
[1737228232805,23.776884,256.42,256.35,4.48567013]
[1737228233310,0.58350642,256.48,256.37,20.0]
[1737228233311,23.776884,256.47,256.37,20.0]
[1737228233496,30.77216826,256.45,256.39,20.0]
[1737228234311,51.031918,256.77,256.43,20.0]
[1737228234312,30.77216826,256.49,256.43,20.0]
[1737228234603,19.7426,256.61,256.43,20.0]
[1737228234604,30.77216826,256.45,256.43,20.0]
[1737228234806,24.36039042,256.44,256.32,7.30981914]
[1737228234985,30.77216826,256.37,256.32,5.1714]
[1737228235187,24.36039042,256.36,256.32,5.1714]
[1737228235394,54.54905226,256.33,256.32,0.063]
[1737228235583,30.77216826,256.33,256.32,0.063]
[1737228236007,23.776884,256.32,256.31,0.063]
[1737228236309,30.77216826,256.28,256.25,0.063]
[1737228236493,0.58350642,256.27,256.25,0.063]
[1737228236688,58.45125226,256.26,256.25,0.063]
[1737228237302,54.54905226,256.26,256.25,0.063]
[1737228237998,55.13255868,256.26,256.25,0.063]
[1737228238907,55.13255868,256.26,256.04,0.58551502]
[1737228238908,10.0,256.16,256.0,0.58560631]
[1737228239110,30.77216826,256.04,255.97,0.58591785]
[1737228239312,30.77216826,256.11,256.04,20.0]
[1737228239689,23.776884,256.1,256.02,0.58574785]
[1737228239885,30.77216826,256.13,256.03,30.77216826]
[1737228240091,0.58350642,256.12,256.03,31.35784543]
[1737228240306,4.56,256.18,256.08,20.0]
[1737228240307,30.77216826,256.15,256.08,20.0]
[1737228240806,31.35567468,256.17,256.1,20.0]
[1737228241000,0.58350642,256.16,256.1,20.0]
[1737228241201,0.58350642,256.18,256.1,20.0]
[1737228241400,0.58350642,256.18,256.1,20.58566139]
[1737228241602,0.58350642,256.18,256.11,0.58564186]
[1737228241789,0.58350642,256.18,256.09,34.67696826]
[1737228241790,0.58350642,256.18,256.09,3.9048]
[1737228241991,23.776884,256.16,256.1,20.0]
[1737228242202,0.58350642,256.15,256.1,20.0]
[1737228242404,30.77216826,256.17,256.1,20.0]
[1737228242601,30.77216826,256.21,256.12,20.0]
[1737228242801,0.58350642,256.2,256.12,23.9043]
[1737228243192,23.776884,256.19,256.12,23.9043]
[1737228243711,0.58350642,256.2,256.14,20.0]
[1737228244094,30.77216826,256.21,256.14,20.0]
[1737228244291,30.77216826,256.27,256.18,20.0]
[1737228244496,30.77216826,256.23,256.13,30.77216826]
[1737228244792,24.36039042,256.22,256.13,30.77216826]
[1737228244993,30.77216826,256.25,256.16,50.77216826]
[1737228245304,4.48550642,256.28,256.18,30.77216826]
[1737228245305,0.58350642,256.24,256.18,30.77216826]
[1737228245499,0.58350642,256.27,256.18,30.77216826]
[1737228245807,23.776884,256.26,256.18,30.77216826]
[1737228245995,23.776884,256.24,256.18,30.77216826]
[1737228246192,23.776884,256.22,256.18,30.77216826]
[1737228246398,23.776884,256.2,256.14,30.77216826]
[1737228246612,23.776884,256.2,256.1,4.7955]
[1737228246613,23.776884,256.18,256.1,35.56766826]
[1737228246914,54.54905226,256.16,256.04,30.77216826]
[1737228247099,54.54905226,256.14,256.04,30.77216826]
[1737228247300,54.54905226,256.12,256.02,30.77216826]
[1737228247616,23.776884,256.1,256.02,30.77216826]
[1737228247788,30.77216826,256.18,256.08,30.77216826]
[1737228247988,0.58350642,256.17,256.08,30.77216826]
[1737228248192,0.58350642,256.17,256.08,34.67696826]
[1737228248413,3.9038,256.16,256.08,30.77216826]
[1737228248614,24.36039042,256.15,256.06,30.77216826]
[1737228248798,30.77216826,256.12,256.02,30.77216826]
[1737228249003,0.58350642,256.11,256.04,30.77216826]
[1737228249507,0.58350642,256.13,256.08,30.77216826]
[1737228249903,0.58350642,256.15,256.08,30.77216826]
[1737228250212,0.58350642,256.22,256.14,30.77216826]
[1737228250512,23.776884,256.24,256.17,30.77216826]
[1737228250806,0.58350642,256.23,256.17,30.77216826]
[1737228251011,0.58350642,256.23,256.1,30.77216826]
[1737228251012,54.54905226,256.22,256.13,30.77216826]
[1737228251204,30.77216826,256.18,256.09,30.77216826]
[1737228251399,23.776884,256.16,256.09,30.77216826]
[1737228251716,30.77216826,256.18,256.09,30.77216826]
[1737228251717,23.776884,256.14,256.09,30.77216826]
[1737228251915,23.776884,256.12,256.05,30.77216826]
[1737228252100,23.776884,256.1,256.05,30.77216826]
[1737228252605,23.776884,256.08,256.03,30.77216826]
[1737228252799,23.776884,256.06,256.03,30.77216826]
[1737228252996,23.776884,256.11,256.03,30.77216826]
[1737228253194,5.0,255.95,255.82,0.03]
[1737228253393,30.77216826,255.9,255.82,0.03]
[1737228253919,30.77216826,255.84,255.82,0.03]
[1737228254120,28.41882739,255.83,255.82,0.03]
[1737228254705,33.41882739,255.83,255.82,0.03]
[1737228254916,46.80194339,255.83,255.7,20.0]
[1737228255220,30.77216826,255.8,255.69,31.06922133]
[1737228255400,0.73316562,255.79,255.69,31.06922133]
[1737228255601,23.776884,255.78,255.69,31.06922133]
[1737228255809,23.776884,255.76,255.69,31.06922133]
[1737228256197,0.73317313,255.79,255.7,3.9108]
[1737228256505,0.73311473,255.8,255.71,31.06913922]
[1737228256708,23.776884,255.79,255.71,0.29697096]
[1737228256898,0.73310616,255.82,255.77,20.0]
[1737228257098,30.77216826,255.88,255.79,20.0]
[1737228257297,30.77216826,255.86,255.79,20.0]
[1737228257516,30.77216826,255.88,255.79,20.0]
[1737228257815,0.73291235,255.87,255.78,30.77216826]
[1737228258016,54.54905226,255.86,255.76,30.77216826]
[1737228258210,0.73298108,255.85,255.76,30.77216826]
[1737228258403,30.77216826,255.84,255.74,34.68226826]
[1737228258604,30.77216826,255.86,255.77,20.0]
[1737228258801,0.73300474,255.85,255.77,20.0]
[1737228258998,0.73300474,255.85,255.79,20.0]
[1737228259213,30.77216826,255.9,255.81,20.0]
[1737228259412,0.73283215,255.89,255.81,0.2964058]
[1737228259732,0.73283215,255.89,255.81,20.2964058]
[1737228260218,30.77216826,255.9,255.83,20.0]
[1737228260720,0.73282154,255.89,255.83,20.0]
[1737228261109,30.77216826,255.92,255.83,0.29638416]
[1737228261318,4.63922133,255.99,255.83,0.29638416]
[1737228261621,30.77216826,255.93,255.83,0.29638416]
[1737228261806,0.73277661,255.92,255.83,0.29638416]
[1737228262007,23.776884,255.91,255.83,0.29638416]
[1737228262208,24.50966061,255.92,255.83,0.29638416]
[1737228262209,30.77216826,255.93,255.84,3.9086]
[1737228262411,30.77216826,255.93,255.85,20.29617822]
[1737228262603,23.776884,255.92,255.85,20.29617822]
[1737228263118,30.77216826,255.92,255.85,20.29618885]
[1737228263323,30.77216826,255.92,255.85,19.5]
[1737228263616,0.73272368,255.93,255.86,0.29621336]
[1737228264305,30.77216826,255.94,255.87,3.9082]
[1737228264506,30.77216826,255.98,255.88,31.06821061]
[1737228265922,30.77216826,255.98,255.91,20.0]
[1737228266712,30.77216826,255.92,255.88,3.9079]
[1737228267325,23.776884,255.93,255.88,3.9079]
[1737228267618,24.50959522,255.93,255.88,3.9079]
[1737228268200,30.77216826,255.94,255.89,20.0]
[1737228268400,30.77216826,255.94,255.84,12.7352]
[1737228268401,30.77216826,255.9,255.84,12.7352]
[1737228268600,30.77216826,255.86,255.83,0.03]
[1737228268809,0.73294393,255.87,255.83,0.03]
[1737228269323,23.776884,255.88,255.83,0.03]
[1737228269525,0.73289373,255.88,255.83,0.03]
[1737228269921,0.73289373,255.88,255.83,3.9387]
[1737228270408,31.50502037,255.96,255.87,30.77216826]
[1737228270617,31.50502037,255.96,255.89,30.77216826]
[1737228270618,0.73285211,255.96,255.89,30.77216826]
[1737228271326,0.73285211,255.96,255.92,20.0]
[1737228271533,30.77216826,256.02,255.91,30.77216826]
[1737228271709,30.77216826,256.04,255.93,30.77216826]
[1737228271909,0.73253992,256.01,255.94,20.0]
[1737228272227,0.73253992,256.01,255.95,3.907]
[1737228272529,0.73248774,256.05,255.97,30.77216826]
[1737228272831,0.73248774,256.05,256.0,20.0]
[1737228273020,0.73248774,256.05,255.98,0.29549351]
[1737228273212,0.73236958,256.15,256.03,30.77216826]
[1737228273414,30.77216826,256.06,256.0,5.0513]
[1737228273620,0.73242099,256.05,256.0,5.0513]
[1737228273929,54.54905226,256.04,255.95,16.8167]
[1737228274129,23.776884,256.02,255.95,16.8167]
[1737228274315,0.73246567,256.09,256.0,30.77216826]
[1737228274519,30.77216826,256.14,256.04,30.77216826]
[1737228274829,30.77216826,256.16,256.06,30.77216826]
[1737228275034,0.73206238,256.15,256.07,0.29486627]
[1737228275413,30.77216826,256.18,256.08,30.77216826]
[1737228275731,0.73204452,256.17,256.09,0.29483053]
[1737228276033,30.77216826,256.22,256.13,3.9042]
[1737228276239,0.73194607,256.21,256.13,3.9042]
[1737228276817,30.77216826,256.2,256.13,3.9042]
[1737228277014,23.776884,256.16,256.11,3.9044]
[1737228277225,24.50897052,256.16,256.11,3.9044]
[1737228277436,23.776884,256.12,256.03,30.77216826]
[1737228277730,23.776884,256.1,256.01,30.77216826]
[1737228277940,23.776884,256.04,255.99,5.0513]
[1737228278141,23.776884,256.02,255.95,43.68186826]
[1737228278442,0.73252055,256.01,255.95,43.68186826]
[1737228278820,0.73244023,256.01,255.95,47.58876826]
[1737228279020,30.77216826,256.09,255.99,30.77216826]
[1737228279215,23.776884,256.08,256.01,30.77216826]
[1737228279425,30.77216826,256.15,256.05,30.77216826]
[1737228279629,0.73219333,256.14,256.05,30.77216826]
[1737228279828,30.77216826,256.13,256.03,30.77216826]
[1737228280026,23.776884,256.11,256.03,30.77216826]
[1737228280236,23.776884,256.09,256.02,3.9058]
[1737228280421,0.73233634,256.08,255.96,0.29523134]
[1737228280619,0.73233634,256.08,256.01,30.77216826]
[1737228281332,23.776884,256.07,255.99,30.77216826]
[1737228281539,0.73235096,256.06,255.99,30.77216826]
[1737228282119,0.73235096,256.06,255.99,3.9064]
[1737228282314,24.5144,256.22,256.01,30.77216826]
[1737228282315,30.77216826,256.11,256.01,30.77216826]
[1737228282519,0.73228142,256.1,256.01,30.77216826]
[1737228282735,23.776884,256.09,256.01,30.77216826]
[1737228283040,0.73228877,256.08,256.01,30.77216826]
[1737228284121,30.77216826,256.13,256.03,30.77216826]
[1737228284319,0.73220089,256.12,256.03,31.06731153]
[1737228284526,0.73220089,256.12,256.03,31.0673786]
[1737228284527,23.776884,256.11,256.03,31.0673786]
[1737228284725,23.776884,256.11,256.02,3.9059]
[1737228284726,23.776884,256.09,256.02,3.9059]
[1737228284920,0.7322988,256.08,256.02,3.9059]
[1737228285537,0.7322988,256.08,256.03,30.77216826]
[1737228286622,0.7322988,256.08,256.04,3.9056]
[1737228287537,23.776884,256.11,256.04,3.9056]
[1737228287844,23.776884,256.09,256.04,3.9056]
[1737228288027,0.7322738,256.08,256.02,3.9059]
[1737228288228,0.063,256.08,256.05,30.77216826]
[1737228289326,0.063,256.08,256.07,19.0431576]
[1737228289940,0.0001,256.08,256.07,19.0431576]
[1737228290126,0.0001,256.08,256.07,18.41832358]
[1737228291439,0.73190551,256.21,256.11,3.9045]
[1737228291648,19.83808377,256.24,256.15,19.0431576]
[1737228292031,19.83808377,256.24,256.11,3.9045]
[1737228292032,19.0431576,256.22,256.11,3.9045]
[1737228292230,42.8200416,256.2,256.11,3.9045]
[1737228292432,23.776884,256.18,256.11,3.9045]
[1737228292743,19.0431576,256.22,256.14,19.0431576]
[1737228293145,23.776884,256.23,256.15,0.29452776]
[1737228293326,23.776884,256.21,256.15,0.29452776]
[1737228293528,23.776884,256.21,256.16,3.9038]
[1737228294632,0.73188685,256.23,256.16,22.9469576]
[1737228294833,19.0431576,256.21,256.12,22.9474576]
[1737228295041,0.73201262,256.2,256.12,23.2421971]
[1737228295237,19.0431576,256.23,256.13,0.29468253]
[1737228295542,0.79490942,256.24,256.16,19.0431576]
[1737228295742,23.776884,256.23,256.17,0.29438167]
[1737228295931,23.776884,256.23,256.16,19.0431576]
[1737228296731,0.063,256.24,256.17,4.19805512]
[1737228297044,0.063,256.24,256.2,19.0431576]
[1737228297933,0.063,256.24,256.22,19.0431576]
[1737228298948,0.063,256.24,256.23,4.19685655]
[1737228299153,0.063,256.24,256.23,3.9027]
[1737228299445,0.063,256.24,256.2,19.0431576]
[1737228299834,0.063,256.24,256.2,39.0431576]
[1737228300031,0.063,256.24,256.2,39.3373997]
[1737228300444,0.063,256.24,256.2,39.0431576]
[1737228300854,0.063,256.24,256.21,3.903]
[1737228301057,0.063,256.24,256.18,19.0431576]
[1737228301254,0.063,256.24,256.2,19.0431576]
[1737228301960,0.7318055,256.23,256.16,3.9038]
[1737228302336,0.063,256.24,256.19,19.0431576]
[1737228302536,0.063,256.24,256.23,19.0431576]
[1737228303053,0.063,256.24,256.23,22.9458576]
[1737228303654,0.063,256.34,256.26,20.0]
[1737228303837,0.063,256.34,256.31,19.0431576]
[1737228304432,0.063,256.34,256.33,39.0431576]
[1737228304933,5.8756417,256.65,256.47,3.899]
[1737228305251,5.8756417,256.65,256.51,25.0]
[1737228305454,5.8756417,256.65,256.58,19.0431576]
[1737228305455,0.73057097,256.64,256.58,19.0431576]
[1737228305657,5.8756417,256.65,256.62,19.0431576]
[1737228305980,0.73073109,256.72,256.64,19.0431576]
[1737228306152,0.73050127,256.76,256.66,19.0431576]
[1737228306838,0.73050127,256.76,256.68,19.0431576]
[1737228307039,23.776884,256.75,256.68,19.0431576]
[1737228307238,0.73043699,256.75,256.68,19.0431576]
[1737228307430,0.73035304,256.78,256.69,30.79859401]
[1737228309146,0.73035304,256.78,256.55,5.0]
[1737228309147,30.79859401,256.76,256.65,30.79859401]
[1737228309466,30.79859401,256.78,256.67,30.79859401]
[1737228309633,3.8934,256.84,256.71,30.79859401]
[1737228309634,0.43875393,256.77,256.71,30.79859401]
[1737228309839,3.8934,256.84,256.75,30.79859401]
[1737228309840,0.43875393,256.83,256.75,30.79859401]
[1737228310039,0.43875393,256.83,256.77,30.79859401]
[1737228310557,42.59875393,256.87,256.81,30.79859401]
[1737228310748,30.79859401,256.82,256.66,0.58398888]
[1737228310945,30.79859401,256.82,256.62,3.8967]
[1737228310946,23.776884,256.72,256.63,30.79859401]
[1737228311245,23.776884,256.72,256.56,9.7441]
[1737228311246,30.79859401,256.65,256.54,30.79859401]
[1737228311559,0.43875393,256.64,256.55,0.58469549]
[1737228311745,24.21563793,256.69,256.6,30.79859401]
[1737228311942,24.21563793,256.69,256.62,30.79859401]
[1737228312145,0.43875393,256.69,256.62,30.79859401]
[1737228312343,0.43875393,256.71,256.67,30.79859401]
[1737228312550,24.21563793,256.76,256.67,30.79859401]
[1737228312736,24.21563793,256.76,256.75,30.79859401]
[1737228312737,0.43875393,256.76,256.75,30.79859401]
[1737228312942,0.063,256.77,256.75,30.79859401]
[1737228313149,0.063,256.77,256.75,34.69329401]
[1737228313343,0.063,256.77,256.75,30.79859401]
[1737228313543,0.063,256.77,256.73,30.79859401]
[1737228314144,0.063,256.77,256.71,30.79859401]
[1737228314339,24.21563793,256.76,256.67,30.79859401]
[1737228314538,24.21563793,256.76,256.67,34.69459401]
[1737228314742,0.43875393,256.76,256.67,30.79859401]
[1737228314961,23.776884,256.72,256.64,30.79859401]
[1737228315261,0.43875393,256.71,256.64,30.79859401]
[1737228315861,0.43875393,256.71,256.63,3.8966]
[1737228316563,23.776884,256.65,256.54,34.69649401]
[1737228316759,0.43875393,256.64,256.54,34.69649401]
[1737228317253,0.43875393,256.64,256.55,0.58462858]
[1737228317558,0.43875393,256.64,256.56,30.79859401]
[1737228318640,0.43875393,256.64,256.55,3.8978]
[1737228318641,23.776884,256.63,256.54,30.79859401]
[1737228318847,23.776884,256.61,256.5,30.79859401]
[1737228319053,0.43875393,256.6,256.5,30.79859401]
[1737228319666,0.43875393,256.7,256.59,30.79859401]
[1737228319841,23.776884,256.68,256.59,30.79859401]
[1737228320046,31.23734794,256.67,256.57,30.79859401]
[1737228320252,23.776884,256.66,256.57,30.79859401]
[1737228320454,23.776884,256.64,256.55,30.79859401]
[1737228320666,23.776884,256.62,256.53,30.79859401]
[1737228320845,23.776884,256.6,256.52,3.8983]
[1737228321045,0.43875393,256.59,256.52,3.8983]
[1737228322365,0.43875393,256.61,256.53,30.79859401]
[1737228322745,0.43875393,256.62,256.55,30.79859401]
[1737228323066,24.21563793,256.66,256.57,30.79859401]
[1737228323267,0.063,256.59,256.57,30.79859401]
[1737228323565,0.063,256.59,256.55,50.79859401]
[1737228323763,0.063,256.59,256.57,30.79859401]
[1737228323956,0.063,256.59,256.58,4.48188069]
[1737228324463,42.1,256.7,256.6,20.0]
[1737228324647,31.23734794,256.73,256.64,30.79859401]
[1737228324858,23.776884,256.72,256.64,30.79859401]
[1737228325163,30.86159401,256.77,256.68,30.79859401]
[1737228325362,0.43875393,256.76,256.7,30.79859401]
[1737228325945,0.063,256.77,256.73,20.0]
[1737228326152,0.063,256.77,256.72,30.79859401]
[1737228326450,0.063,256.77,256.72,31.38285029]
[1737228326653,0.063,256.77,256.72,30.79859401]
[1737228327263,0.063,256.77,256.69,3.8956]
[1737228327462,0.50175393,256.77,256.7,31.38294563]
[1737228327666,0.50175393,256.77,256.7,30.79859401]
[1737228327848,0.063,256.77,256.7,30.79859401]
[1737228328050,0.50175393,256.77,256.71,3.8954]
[1737228329066,0.063,256.77,256.7,30.79859401]
[1737228329254,31.30034794,256.77,256.69,3.8957]
[1737228329454,0.50175393,256.77,256.69,3.8957]
[1737228329871,23.776884,256.7,256.62,3.8966]
[1737228330175,0.43875393,256.69,256.61,3.8968]
[1737228330461,0.43875393,256.69,256.6,4.9911]
[1737228330462,23.776884,256.68,256.6,4.9911]
[1737228330667,23.776884,256.68,256.59,18.95313676]
[1737228330668,0.43875393,256.67,256.59,18.95313676]
[1737228330867,19.39189069,256.67,256.58,3.8973]
[1737228331373,0.43875393,256.67,256.62,18.95313676]
[1737228331665,24.21563793,256.71,256.62,18.95313676]
[1737228331859,18.95313676,256.68,256.6,18.95313676]
[1737228332168,24.21563793,256.67,256.6,18.95313676]
[1737228332371,24.21563793,256.67,256.59,3.8972]